fUST/lending_fUST_20250602
["ID","MTS","AMOUNT","RATE_DAILY","PERIOD"]
[363712374,1748838640214,-2669.09903754,0.0001999,2]
[363712377,1748838640225,-4535.57255569,0.0001999,2]
[363712379,1748838640235,-1197.38092187,0.0002,2]
[363712381,1748838640244,-500.52456652,0.0002,2]
[363712383,1748838640254,-603.43877785,0.00020107,2]
[363712385,1748838640263,-1653.17342697,0.00020121,2]
[363712387,1748838640273,-1043.04,0.00020124,2]
[363712389,1748838640282,-1100.0,0.00020129,2]
[363712391,1748838640292,-12668.79298183,0.00020156,2]
[363712393,1748838640302,-423.56953423,0.00020156,2]
[363712395,1748838640312,-229.39799938,0.00020156,2]
[363712397,1748838640322,-160.0,0.00020156,2]
[363712399,1748838640332,-842.5625,0.00020157,2]
[363712401,1748838640341,-212.83419937,0.00020157,2]
[363712403,1748838640350,-160.0,0.00020157,2]
[363712404,1748838640360,-160.0,0.00020157,2]
[363712407,1748838640370,-160.0,0.00020157,2]
[363712408,1748838640379,-430.0,0.00020173,2]
[363712411,1748838640389,-667.56,0.00020173,2]
[363712413,1748838640401,-478.57330825,0.00020173,2]
[363712415,1748838640410,-643.28,0.00020173,2]
[363712417,1748838640420,-430.0,0.00020173,2]
[363712418,1748838640429,-430.0,0.00020173,2]
[363712419,1748838640439,-812.28,0.00020173,2]
[363712420,1748838640448,-430.0,0.00020173,2]
[363712421,1748838640458,-430.0,0.00020173,2]
[363712422,1748838640467,-431.53,0.00020173,2]
[363712423,1748838640478,-430.0,0.00020173,2]
[363712424,1748838640488,-430.0,0.00020173,2]
[363712425,1748838640498,-430.0,0.00020173,2]
[363712426,1748838640509,-430.0,0.00020175,2]
[363712427,1748838640518,-430.0,0.00020175,2]
[363712428,1748838640528,-430.0,0.00020175,2]
[363712429,1748838640538,-430.0,0.00020175,2]
[363712430,1748838640548,-430.0,0.00020175,2]
[363712431,1748838640558,-430.0,0.00020175,2]
[363712432,1748838640568,-430.0,0.00020175,2]
[363712433,1748838640578,-430.0,0.00020175,2]
[363712434,1748838640587,-430.0,0.00020175,2]
[363712435,1748838640597,-430.0,0.00020175,2]
[363712436,1748838640607,-430.0,0.00020175,2]
[363712437,1748838640617,-430.0,0.00020175,2]
[363712438,1748838640626,-430.0,0.00020175,2]
[363712439,1748838640637,-430.0,0.00020175,2]
[363712440,1748838640648,-430.0,0.00020175,2]
[363712441,1748838640658,-430.0,0.00020175,2]
[363712442,1748838640668,-651.83,0.00020175,2]
[363712443,1748838640677,-430.0,0.00020176,2]
[363712444,1748838640687,-430.0,0.00020176,2]
[363712445,1748838640697,-430.0,0.00020176,2]
[363712446,1748838640706,-430.0,0.00020176,2]
[363712447,1748838640716,-430.0,0.00020176,2]
[363712448,1748838640726,-430.0,0.00020176,2]
[363712449,1748838640735,-508.77784094,0.00020176,2]
[363712450,1748838640745,-479.39463629,0.00020176,2]
[363712451,1748838640754,-430.0,0.00020176,2]
[363712452,1748838640763,-430.0,0.00020176,2]
[363712453,1748838640773,-430.0,0.00020176,2]
[363712454,1748838640782,-430.0,0.00020176,2]
[363712455,1748838640791,-430.0,0.00020176,2]
[363712456,1748838640800,-430.0,0.00020176,2]
[363712457,1748838640810,-436.82093904,0.00020176,2]
[363712458,1748838640819,-430.93585546,0.00020177,2]
[363712459,1748838640829,-226.498785,0.00020187,2]
[363712460,1748838640839,-603.43877785,0.00020279,3]
[363712461,1748838640849,-430.0,0.00020447,2]
[363712462,1748838640858,-667.56,0.00020447,2]
[363712463,1748838640868,-643.28,0.00020447,2]
[363712464,1748838640879,-430.0,0.00020447,2]
[363712465,1748838640890,-812.28,0.00020447,2]
[363712466,1748838640901,-430.0,0.00020447,2]
[363712467,1748838640912,-431.53,0.00020447,2]
[363712468,1748838640924,-430.0,0.00020447,2]
[363712469,1748838640935,-430.0,0.00020447,2]
[363712470,1748838640946,-430.0,0.00020449,2]
[363712471,1748838640956,-549.7,0.00020449,2]
[363712472,1748838640966,-430.0,0.00020449,2]
[363712473,1748838640976,-430.0,0.00020449,2]
[363712474,1748838640986,-430.0,0.00020449,2]
[363712475,1748838640995,-651.83,0.00020449,2]
[363712476,1748838641006,-430.0,0.0002045,2]
[363712477,1748838641017,-603.43877785,0.00020452,3]
[363712478,1748838641027,-511.46750223,0.00020507,2]
[363712479,1748838641037,-160.81771939,0.00020547,2]
[363712480,1748838641047,-603.43877785,0.00020624,3]
[363712481,1748838641058,-430.0,0.00020721,2]
[363712482,1748838641067,-667.56,0.00020721,2]
[363712483,1748838641077,-643.28,0.00020721,2]
[363712484,1748838641087,-430.0,0.00020721,2]
[363712485,1748838641096,-812.28,0.00020721,2]
[363712486,1748838641106,-430.0,0.00020721,2]
[363712487,1748838641115,-431.53,0.00020721,2]
[363712488,1748838641125,-430.0,0.00020723,2]
[363712489,1748838641134,-430.0,0.00020723,2]
[363712490,1748838641144,-430.0,0.00020723,2]
[363712491,1748838641153,-651.83,0.00020723,2]
[363712492,1748838641162,-603.43877785,0.00020797,4]
[363712493,1748838641171,-1325.8631852,0.00020917,2]
[363712494,1748838641181,-603.43877785,0.00020969,4]
[363712495,1748838641190,-1653.17342697,0.0002099,2]
[363712496,1748838641200,-237.29,0.00020995,2]
[363712497,1748838641209,-667.56,0.00020995,2]
[363712498,1748838641218,-643.28,0.00020995,2]
[363712499,1748838641228,-812.28,0.00020995,2]
[363712500,1748838641238,-430.0,0.00020995,2]
[363712501,1748838641248,-431.53,0.00020995,2]
[363712502,1748838641258,-430.0,0.00020997,2]
[363712503,1748838641268,-430.0,0.00020997,2]
[363712504,1748838641278,-651.83,0.00020997,2]
[363712505,1748838641287,-1390.72,0.00020999,2]
[363712506,1748838641296,-268.00654762,0.00021,2]
[363712507,1748838641306,-161.47851057,0.00021,7]
[363712508,1748838641316,-200.46136976,0.00021,2]
[363712509,1748838641325,-608.5082796,0.00021096,2]
[363712510,1748838641335,-151.0,0.000211,3]
[363712511,1748838641344,-603.43877785,0.00021141,4]
[363712512,1748838641354,-1100.0,0.00021225,2]
[363712513,1748838641363,-153.7623239,0.00021233,2]
[363712514,1748838641373,-667.56,0.00021269,2]
[363712515,1748838641382,-643.28,0.00021269,2]
[363712516,1748838641392,-812.28,0.00021269,2]
[363712517,1748838641401,-430.0,0.00021269,2]
[363712518,1748838641411,-431.53,0.00021269,2]
[363712519,1748838641421,-430.0,0.00021271,2]
[363712520,1748838641430,-430.0,0.00021271,2]
[363712521,1748838641440,-651.83,0.00021271,2]
[363712522,1748838641450,-603.43877785,0.00021314,5]
[363712523,1748838641459,-207.4,0.00021389,2]
[363712524,1748838641469,-2500.0,0.00021389,2]
[363712525,1748838641479,-2082.84540194,0.00021389,2]
[363712526,1748838641488,-5000.0,0.00021389,2]
[363712527,1748838641498,-151.0,0.000214,4]
[363712528,1748838641507,-603.43877785,0.00021486,5]
[363712529,1748838641517,-504.36430678,0.000215,2]
[363712530,1748838641527,-158.368211,0.00021507,2]
[363712531,1748838641537,-192.0318378,0.00021507,2]
[363712532,1748838641546,-153.0,0.00021507,2]
[363712533,1748838641555,-240.0571315,0.00021507,2]
[363712534,1748838641565,-572.078714,0.00021507,2]
[363712535,1748838641575,-153.0,0.00021507,2]
[363712536,1748838641585,-176.5287595,0.00021507,2]
[363712537,1748838641595,-176.5287595,0.00021507,2]
[363712538,1748838641604,-153.0,0.00021507,2]
[363712539,1748838641614,-176.5287595,0.00021507,2]
[363712540,1748838641624,-153.0,0.00021507,2]
[363712541,1748838641633,-176.5287595,0.00021507,2]
[363712542,1748838641643,-175.7330275,0.00021507,2]
[363712543,1748838641653,-153.0,0.00021507,2]
[363712544,1748838641662,-153.0,0.00021507,2]
[363712545,1748838641672,-153.0,0.00021507,2]
[363712546,1748838641682,-153.0,0.00021507,2]
[363712547,1748838641691,-153.0,0.00021507,2]
[363712548,1748838641701,-800.0,0.00021519,2]
[363712549,1748838641710,-667.56,0.00021543,2]
[363712550,1748838641721,-643.28,0.00021543,2]
[363712551,1748838641731,-812.28,0.00021543,2]
[363712552,1748838641740,-430.0,0.00021543,2]
[363712553,1748838641750,-431.53,0.00021543,2]
[363712554,1748838641760,-430.0,0.00021545,2]
[363712555,1748838641770,-430.0,0.00021545,2]
[363712556,1748838641780,-651.83,0.00021545,2]
[363712557,1748838641789,-2163.590311,0.00021559,3]
[363712558,1748838641799,-151.0,0.000216,3]
[363712559,1748838641809,-603.43877785,0.00021659,5]
[363712560,1748838641818,-283841.32342258,0.000217,2]
[363712561,1748838641828,-151.0,0.000217,4]
[363712562,1748838641837,-13659.96845735,0.0002178,2]
[363712563,1748838641846,-667.56,0.00021817,2]
[363712564,1748838641856,-643.28,0.00021817,2]
[363712565,1748838641866,-812.28,0.00021817,2]
[363712566,1748838641876,-430.0,0.00021817,2]
[363712567,1748838641886,-431.53,0.00021817,2]
[363712568,1748838641895,-430.0,0.00021819,2]
[363712569,1748838641905,-166.7737139,0.00021819,2]
[363712570,1748838641915,-651.83,0.00021819,2]
[363712571,1748838641924,-603.43877785,0.00021831,6]
[363712572,1748838641934,-1653.17342697,0.00021858,2]
[363712573,1748838641943,-1738.4,0.00021874,2]
[363712574,1748838641953,-200.0,0.00021917,2]
[363712575,1748838641963,-525.76070126,0.00021917,2]
[363712576,1748838641972,-774.6,0.00021917,2]
[363712577,1748838641982,-500.0,0.00021917,2]
[363712578,1748838641992,-500.0,0.00021917,2]
[363712579,1748838642002,-500.0,0.00021917,2]
[363712580,1748838642012,-500.0,0.00021917,2]
[363712581,1748838642023,-500.0,0.00021917,2]
[363712582,1748838642033,-500.0,0.00021917,2]
[363712583,1748838642043,-500.0,0.00021917,2]
[363712584,1748838642053,-500.0,0.00021917,2]
[363712585,1748838642062,-500.0,0.00021917,2]
[363712586,1748838642072,-500.0,0.00021917,2]
[363712587,1748838642081,-500.0,0.00021917,2]
[363712588,1748838642091,-150.0,0.00021918,2]
[363712589,1748838642101,-12500.0,0.00021918,2]
[363712590,1748838642111,-5000.0,0.00021937,2]
[363712591,1748838642121,-500.0,0.00021973,2]
[363712592,1748838642131,-503.02987642,0.00021973,2]
[363712593,1748838642141,-500.0,0.00021973,2]
[363712594,1748838642151,-500.0,0.00021973,2]
[363712595,1748838642161,-502.47866998,0.00021973,2]
[363712596,1748838642172,-500.0,0.00021973,2]
[363712597,1748838642181,-500.0,0.00021973,2]
[363712598,1748838642191,-500.0,0.00021973,2]
[363712599,1748838642201,-600.0,0.00021973,2]
[363712600,1748838642211,-500.0,0.00021973,2]
[363712601,1748838642221,-502.08773478,0.00021973,2]
[363712602,1748838642231,-501.46558268,0.00021973,2]
[363712603,1748838642241,-22933.2585096,0.00021984,2]
[363712604,1748838642251,-485879.18091874,0.00021999,2]
[363712605,1748838642266,-6690.39253824,0.00021999,2]
[363712606,1748838642278,-5433.58312514,0.00021999,2]
[363712607,1748838642290,-13849.57640287,0.00021999,2]
[363712608,1748838642301,-1099.96710003,0.00021999,2]
[363712609,1748838642313,-38022.0717346,0.00021999,2]
[363712631,1748838643411,-258.0,0.00021999,2]
[363712644,1748838643520,-763.81059378,0.00021999,2]
[363712808,1748838646608,-16267.9959341,0.00021999,2]
[363712809,1748838646620,-22698.30197581,0.00021999,2]
[363712810,1748838646663,-3392.86604735,0.00021999,2]
[363712811,1748838646676,-268.43765055,0.00021999,2]
[363712823,1748839181127,220815.989999,0.00022,120]
[363712824,1748839192244,2818599.25304167,0.00021918,60]
[363712826,1748839269808,211.886243,0.00013699,2]
[363712853,1748839832865,-5000.0,0.00017919,2]
[363712854,1748839832875,-5000.0,0.000181,2]
[363712855,1748839832885,-300.0,0.00018119,2]
[363712856,1748839832894,-300.0,0.00018124,2]
[363712857,1748839832904,-414.85,0.00018174,2]
[363712858,1748839832913,-4868.0,0.00018406,2]
[363712859,1748839832923,-226.89312022,0.00018505,2]
[363712860,1748839832933,-274.47612388,0.00018548,2]
[363712861,1748839832942,-671.63229433,0.000189,2]
[363712862,1748839832952,-1404.51117675,0.00018977,2]
[363712863,1748839832962,-400.0,0.00019,2]
[363712864,1748839832972,-430.0,0.00019032,2]
[363712865,1748839832982,-400.0,0.00019032,2]
[363712866,1748839832991,-430.0,0.00019032,2]
[363712867,1748839833001,-430.0,0.00019032,2]
[363712868,1748839833010,-1200.0,0.00019033,2]
[363712869,1748839833020,-829.7,0.0001904,2]
[363712870,1748839833030,-445.09458405,0.00019071,2]
[363712871,1748839833040,-430.0,0.00019071,2]
[363712872,1748839833050,-439.26858378,0.00019071,2]
[363712873,1748839833060,-430.0,0.00019071,2]
[363712874,1748839833069,-430.0,0.00019071,2]
[363712875,1748839833079,-430.0,0.00019071,2]
[363712876,1748839833089,-430.0,0.00019071,2]
[363712877,1748839833099,-889.95,0.00019071,2]
[363712878,1748839833109,-466.38041003,0.00019071,2]
[363712879,1748839833119,-410.8118849,0.00019071,2]
[363712880,1748839833129,-430.0,0.00019071,2]
[363712881,1748839833139,-263.88,0.00019071,2]
[363712882,1748839833149,-430.0,0.00019071,2]
[363712883,1748839833158,-443.24130595,0.00019071,2]
[363712884,1748839833168,-430.0,0.00019071,2]
[363712885,1748839833178,-430.0,0.00019071,2]
[363712886,1748839833190,-900.56,0.00019071,2]
[363712887,1748839833200,-1132.34,0.00019071,2]
[363712888,1748839833210,-430.0,0.00019071,2]
[363712889,1748839833220,-430.0,0.00019071,2]
[363712890,1748839833229,-430.0,0.00019071,2]
[363712891,1748839833239,-449.49659158,0.00019071,2]
[363712892,1748839833249,-430.0,0.00019071,2]
[363712893,1748839833258,-521.07,0.00019071,2]
[363712894,1748839833267,-430.0,0.00019071,2]
[363712895,1748839833277,-430.0,0.00019071,2]
[363712896,1748839833287,-430.0,0.00019071,2]
[363712897,1748839833297,-430.0,0.00019071,2]
[363712898,1748839833307,-430.0,0.00019071,2]
[363712899,1748839833317,-430.0,0.00019071,2]
[363712900,1748839833327,-453.94659006,0.00019071,2]
[363712901,1748839833337,-430.0,0.00019071,2]
[363712902,1748839833350,-601.37230485,0.00019071,2]
[363712903,1748839833360,-500.0,0.00019071,2]
[363712904,1748839833371,-500.0,0.00019071,2]
[363712905,1748839833381,-500.0,0.00019071,2]
[363712906,1748839833391,-500.0,0.00019071,2]
[363712907,1748839833402,-649.53230221,0.00019071,2]
[363712908,1748839833411,-500.0,0.00019071,2]
[363712909,1748839833421,-533.45068129,0.00019071,2]
[363712910,1748839833431,-500.0,0.00019071,2]
[363712911,1748839833441,-500.0,0.00019071,2]
[363712912,1748839833451,-430.0,0.00019072,2]
[363712913,1748839833461,-444.48315072,0.00019072,2]
[363712914,1748839833471,-430.0,0.00019072,2]
[363712915,1748839833481,-416.64137283,0.00019072,2]
[363712916,1748839833491,-417.91262611,0.00019072,2]
[363712917,1748839833502,-1117.92726272,0.00019072,2]
[363712918,1748839833511,-349.53088784,0.00019072,2]
[363712919,1748839833522,-416.11234832,0.00019072,2]
[363712920,1748839833533,-421.72134209,0.00019072,2]
[363712921,1748839833543,-412.97171181,0.00019072,2]
[363712922,1748839833553,-430.0,0.00019072,2]
[363712923,1748839833563,-430.0,0.00019072,2]
[363712924,1748839833573,-443.86215172,0.00019072,2]
[363712925,1748839833583,-438.12037596,0.00019072,2]
[363712926,1748839833593,-447.14309708,0.00019072,2]
[363712927,1748839833603,-465.25185844,0.00019072,2]
[363712928,1748839833613,-458.17284797,0.00019072,2]
[363712929,1748839833623,-434.67458146,0.00019072,2]
[363712930,1748839833632,-430.0,0.00019072,2]
[363712931,1748839833641,-430.0,0.00019072,2]
[363712932,1748839833651,-439.03410899,0.00019072,2]
[363712933,1748839833661,-440.24479015,0.00019072,2]
[363712934,1748839833671,-430.0,0.00019072,2]
[363712935,1748839833680,-461.71874126,0.00019072,2]
[363712936,1748839833689,-408.8092041,0.00019072,2]
[363712937,1748839833699,-430.0,0.00019072,2]
[363712938,1748839833709,-299.02496609,0.00019072,2]
[363712939,1748839833719,-430.0,0.00019072,2]
[363712940,1748839833730,-430.0,0.00019072,2]
[363712941,1748839833740,-432.55870095,0.00019072,2]
[363712942,1748839833749,-422.93632722,0.00019072,2]
[363712943,1748839833759,-412.02850224,0.00019072,2]
[363712944,1748839833769,-430.0,0.00019072,2]
[363712945,1748839833779,-452.96730173,0.00019072,2]
[363712946,1748839833789,-411.131633,0.00019072,2]
[363712947,1748839833798,-430.0,0.00019072,2]
[363712948,1748839833809,-402.7727925,0.00019072,2]
[363712949,1748839833818,-441.9,0.00019072,2]
[363712950,1748839833829,-430.0,0.00019072,2]
[363712951,1748839833840,-422.797985,0.00019072,2]
[363712952,1748839833850,-409.60633643,0.00019072,2]
[363712953,1748839833860,-440.4796504,0.00019072,2]
[363712954,1748839833871,-430.0,0.00019072,2]
[363712955,1748839833882,-430.0,0.00019072,2]
[363712956,1748839833892,-430.0,0.00019072,2]
[363712957,1748839833902,-409.50002169,0.00019072,2]
[363712958,1748839833912,-430.0,0.00019072,2]
[363712959,1748839833922,-430.0,0.00019072,2]
[363712960,1748839833932,-430.0,0.00019072,2]
[363712961,1748839833941,-430.0,0.00019072,2]
[363712962,1748839833951,-430.0,0.00019072,2]
[363712963,1748839833961,-435.26677314,0.00019072,2]
[363712964,1748839833970,-442.15745603,0.00019072,2]
[363712965,1748839833980,-430.0,0.00019072,2]
[363712966,1748839833989,-448.78779347,0.00019072,2]
[363712967,1748839833998,-430.0,0.00019072,2]
[363712968,1748839834008,-433.77,0.00019072,2]
[363712969,1748839834021,-445.57456636,0.00019072,2]
[363712970,1748839834031,-430.0,0.00019072,2]
[363712971,1748839834041,-462.95443852,0.00019072,2]
[363712972,1748839834051,-430.0,0.00019072,2]
[363712973,1748839834061,-374.84126933,0.00019072,2]
[363712974,1748839834071,-430.0,0.00019072,2]
[363712975,1748839834081,-414.64797292,0.00019072,2]
[363712976,1748839834091,-290.63884412,0.00019072,2]
[363712977,1748839834100,-430.0,0.00019072,2]
[363712978,1748839834111,-430.0,0.00019072,2]
[363712979,1748839834121,-430.0,0.00019072,2]
[363712980,1748839834131,-426.60772689,0.00019072,2]
[363712981,1748839834142,-430.0,0.00019072,2]
[363712982,1748839834151,-430.0,0.00019072,2]
[363712983,1748839834161,-360.95113158,0.00019072,2]
[363712984,1748839834171,-430.0,0.00019072,2]
[363712985,1748839834181,-430.0,0.00019072,2]
[363712986,1748839834192,-430.0,0.00019072,2]
[363712987,1748839834203,-430.0,0.00019072,2]
[363712988,1748839834213,-430.0,0.00019072,2]
[363712989,1748839834222,-348.08126649,0.00019072,2]
[363712990,1748839834231,-409.49654014,0.00019072,2]
[363712991,1748839834241,-334.01460011,0.00019072,2]
[363712992,1748839834251,-430.0,0.00019072,2]
[363712993,1748839834261,-347.12698007,0.00019072,2]
[363712994,1748839834270,-430.0,0.00019072,2]
[363712995,1748839834281,-410.50668379,0.00019072,2]
[363712996,1748839834291,-430.0,0.00019072,2]
[363712997,1748839834301,-436.46223544,0.00019072,2]
[363712998,1748839834311,-430.0,0.00019072,2]
[363712999,1748839834321,-403.74443085,0.00019072,2]
[363713000,1748839834332,-453.69908247,0.00019072,2]
[363713001,1748839834344,-408.14195522,0.00019072,2]
[363713002,1748839834355,-431.67683541,0.00019072,2]
[363713003,1748839834365,-430.0,0.00019072,2]
[363713004,1748839834375,-166.6410457,0.00019072,2]
[363713005,1748839834386,-430.0,0.00019072,2]
[363713006,1748839834396,-430.0,0.00019072,2]
[363713007,1748839834407,-671.63229406,0.00019072,2]
[363713008,1748839834416,-500.0,0.00019073,2]
[363713009,1748839834427,-430.0,0.00019073,2]
[363713010,1748839834438,-430.0,0.00019073,2]
[363713011,1748839834449,-430.0,0.00019073,2]
[363713012,1748839834459,-430.0,0.00019073,2]
[363713013,1748839834469,-430.0,0.00019073,2]
[363713014,1748839834479,-430.0,0.00019073,2]
[363713015,1748839834488,-571.25,0.00019073,2]
[363713016,1748839834499,-430.0,0.00019073,2]
[363713017,1748839834509,-430.0,0.00019073,2]
[363713018,1748839834519,-430.0,0.00019073,2]
[363713019,1748839834528,-430.0,0.00019073,2]
[363713020,1748839834538,-500.0,0.00019073,2]
[363713021,1748839834547,-454.34462575,0.00019073,2]
[363713022,1748839834558,-430.0,0.00019073,2]
[363713023,1748839834568,-430.0,0.00019073,2]
[363713024,1748839834578,-430.0,0.00019073,2]
[363713025,1748839834588,-442.43467982,0.00019073,2]
[363713026,1748839834598,-442.18629898,0.00019073,2]
[363713027,1748839834607,-430.0,0.00019073,2]
[363713028,1748839834618,-430.0,0.00019073,2]
[363713029,1748839834628,-430.0,0.00019073,2]
[363713030,1748839834637,-439.45355702,0.00019073,2]
[363713031,1748839834647,-430.0,0.00019073,2]
[363713032,1748839834658,-430.0,0.00019073,2]
[363713033,1748839834668,-496.8,0.00019073,2]
[363713034,1748839834677,-499.34,0.00019073,2]
[363713035,1748839834687,-430.0,0.00019073,2]
[363713036,1748839834696,-430.0,0.00019073,2]
[363713037,1748839834706,-430.0,0.00019073,2]
[363713038,1748839834716,-430.0,0.00019073,2]
[363713039,1748839834726,-550.8,0.00019073,2]
[363713040,1748839834735,-430.0,0.00019073,2]
[363713041,1748839834745,-430.0,0.00019073,2]
[363713042,1748839834755,-430.0,0.00019073,2]
[363713043,1748839834764,-430.0,0.00019073,2]
[363713044,1748839834773,-430.0,0.00019073,2]
[363713045,1748839834894,-430.0,0.00019073,2]
[363713046,1748839834904,-430.0,0.00019073,2]
[363713047,1748839834914,-430.0,0.00019073,2]
[363713048,1748839834923,-430.0,0.00019073,2]
[363713049,1748839834933,-430.0,0.00019073,2]
[363713050,1748839834943,-430.0,0.00019073,2]
[363713051,1748839834953,-430.0,0.00019073,2]
[363713052,1748839834963,-430.0,0.00019073,2]
[363713053,1748839834972,-430.0,0.00019073,2]
[363713054,1748839834982,-430.0,0.00019073,2]
[363713055,1748839834991,-430.0,0.00019073,2]
[363713056,1748839835001,-430.0,0.00019073,2]
[363713057,1748839835011,-430.0,0.00019073,2]
[363713058,1748839835021,-961.55,0.00019073,2]
[363713059,1748839835030,-425.96487688,0.00019074,2]
[363713060,1748839835039,-430.0,0.00019074,2]
[363713061,1748839835049,-428.47449269,0.00019074,2]
[363713062,1748839835059,-430.0,0.00019074,2]
[363713063,1748839835068,-430.0,0.00019074,2]
[363713064,1748839835077,-430.0,0.00019074,2]
[363713065,1748839835086,-430.0,0.00019074,2]
[363713066,1748839835096,-430.0,0.00019074,2]
[363713067,1748839835105,-430.0,0.00019074,2]
[363713068,1748839835115,-435.18613279,0.00019074,2]
[363713069,1748839835124,-430.0,0.00019074,2]
[363713070,1748839835133,-430.0,0.00019074,2]
[363713071,1748839835142,-430.0,0.00019074,2]
[363713072,1748839835151,-430.0,0.00019074,2]
[363713073,1748839835161,-430.0,0.00019074,2]
[363713074,1748839835171,-430.0,0.00019074,2]
[363713075,1748839835180,-430.0,0.00019074,2]
[363713076,1748839835190,-430.0,0.00019074,2]
[363713077,1748839835199,-430.0,0.00019074,2]
[363713078,1748839835208,-430.0,0.00019074,2]
[363713079,1748839835220,-430.0,0.00019074,2]
[363713080,1748839835232,-430.0,0.00019074,2]
[363713081,1748839835242,-430.0,0.00019074,2]
[363713082,1748839835253,-430.0,0.00019074,2]
[363713083,1748839835263,-430.0,0.00019074,2]
[363713084,1748839835273,-430.0,0.00019074,2]
[363713085,1748839835283,-430.0,0.00019074,2]
[363713086,1748839835294,-430.0,0.00019074,2]
[363713087,1748839835304,-200.97508311,0.00019074,2]
[363713088,1748839835315,-430.0,0.00019074,2]
[363713089,1748839835324,-436.64903699,0.00019074,2]
[363713090,1748839835335,-430.0,0.00019074,2]
[363713091,1748839835348,-430.0,0.00019074,2]
[363713092,1748839835358,-430.0,0.00019074,2]
[363713093,1748839835368,-430.0,0.00019074,2]
[363713094,1748839835379,-430.0,0.00019074,2]
[363713095,1748839835389,-430.0,0.00019074,2]
[363713096,1748839835398,-430.0,0.00019074,2]
[363713097,1748839835408,-430.0,0.00019074,2]
[363713098,1748839835418,-430.0,0.00019074,2]
[363713099,1748839835430,-500.0,0.00019074,2]
[363713100,1748839835441,-430.0,0.00019074,2]
[363713101,1748839835451,-430.0,0.00019074,2]
[363713102,1748839835461,-303.07704169,0.00019074,2]
[363713103,1748839835470,-449.17161289,0.00019074,2]
[363713104,1748839835480,-430.0,0.00019074,2]
[363713105,1748839835489,-430.0,0.00019074,2]
[363713106,1748839835499,-430.0,0.00019074,2]
[363713107,1748839835508,-430.0,0.00019074,2]
[363713108,1748839835517,-430.0,0.00019074,2]
[363713109,1748839835527,-430.0,0.00019074,2]
[363713110,1748839835537,-430.0,0.00019074,2]
[363713111,1748839835546,-430.0,0.00019074,2]
[363713112,1748839835556,-430.0,0.00019074,2]
[363713113,1748839835567,-430.0,0.00019074,2]
[363713114,1748839835576,-430.0,0.00019074,2]
[363713115,1748839835586,-430.0,0.00019074,2]
[363713116,1748839835596,-512.52,0.00019074,2]
[363713117,1748839835606,-430.0,0.00019074,2]
[363713118,1748839835617,-430.0,0.00019074,2]
[363713119,1748839835626,-430.0,0.00019074,2]
[363713120,1748839835636,-430.0,0.00019074,2]
[363713121,1748839835646,-430.0,0.00019074,2]
[363713122,1748839835655,-430.0,0.00019074,2]
[363713123,1748839835664,-430.0,0.00019074,2]
[363713124,1748839835674,-430.0,0.00019074,2]
[363713125,1748839835683,-430.0,0.00019074,2]
[363713126,1748839835692,-411.27567292,0.00019074,2]
[363713127,1748839835702,-430.0,0.00019074,2]
[363713128,1748839835711,-430.0,0.00019074,2]
[363713129,1748839835720,-430.0,0.00019074,2]